[Event "*** Titled Tuesday Blitz"]
[Site "Chess.com"]
[Date "2020.05.05"]
[Round "5"]
[White "Korona_91"]
[Black "jguerramzllo"]
[Result "1-0"]
[WhiteElo "2450"]
[BlackElo "2616"]
[TimeControl "180+1"]
[EndTime "10:59:02 PDT"]
[Termination "Korona_91 won by resignation"]

1. e4 {[%clk 0:02:58.7]} 1... e5 {[%clk 0:02:59.6]} 2. Nf3 {[%clk 0:02:58.5]}
2... Nc6 {[%clk 0:03:00.1]} 3. Bc4 {[%clk 0:02:57]} 3... Bc5 {[%clk 0:02:56.3]}
4. d3 {[%clk 0:02:49.2]} 4... Nf6 {[%clk 0:02:55.1]} 5. Nc3 {[%clk 0:02:48.5]}
5... O-O {[%clk 0:02:49]} 6. Bg5 {[%clk 0:02:44]} 6... h6 {[%clk 0:02:48.5]} 7.
Bxf6 {[%clk 0:02:43.6]} 7... Qxf6 {[%clk 0:02:47.1]} 8. Nd5 {[%clk 0:02:44.1]}
8... Qd8 {[%clk 0:02:45.1]} 9. c3 {[%clk 0:02:44.6]} 9... d6 {[%clk 0:02:38.9]}
10. O-O {[%clk 0:02:36.3]} 10... a6 {[%clk 0:02:17.4]} 11. d4 {[%clk 0:02:33.2]}
11... Ba7 {[%clk 0:02:15.1]} 12. dxe5 {[%clk 0:02:29.9]} 12... Nxe5 {[%clk
0:02:14.3]} 13. Nxe5 {[%clk 0:02:29.5]} 13... dxe5 {[%clk 0:02:15.2]} 14. Qh5
{[%clk 0:02:23.9]} 14... c6 {[%clk 0:02:10.5]} 15. Ne3 {[%clk 0:02:18.9]} 15...
Qg5 {[%clk 0:02:03.9]} 16. Qxg5 {[%clk 0:02:12.6]} 16... hxg5 {[%clk 0:02:03.5]}
17. Rad1 {[%clk 0:02:13.1]} 17... g6 {[%clk 0:01:48.5]} 18. Bb3 {[%clk
0:01:50.4]} 18... Kg7 {[%clk 0:01:09.7]} 19. Nc4 {[%clk 0:01:50.1]} 19... Kf6
{[%clk 0:01:09.4]} 20. Nd6 {[%clk 0:01:25.2]} 20... Ke7 {[%clk 0:01:04.5]} 21.
Rd3 {[%clk 0:01:13.8]} 21... Bc5 {[%clk 0:00:55.3]} 22. Nxc8+ {[%clk 0:01:11.1]}
22... Raxc8 {[%clk 0:00:53.6]} 23. Rfd1 {[%clk 0:01:11.7]} 23... Rc7 {[%clk
0:00:53.9]} 24. g3 {[%clk 0:01:07.6]} 24... f5 {[%clk 0:00:46.4]} 25. exf5
{[%clk 0:01:04.2]} 25... gxf5 {[%clk 0:00:42.5]} 26. Kg2 {[%clk 0:01:04]} 26...
e4 {[%clk 0:00:40.6]} 27. R3d2 {[%clk 0:01:04.1]} 27... f4 {[%clk 0:00:39.9]}
28. Bc2 {[%clk 0:00:54.6]} 28... e3 {[%clk 0:00:26.1]} 29. fxe3 {[%clk
0:00:55.5]} 29... fxe3 {[%clk 0:00:26.1]} 30. Re2 {[%clk 0:00:54.1]} 30... Rf2+
{[%clk 0:00:23]} 31. Rxf2 {[%clk 0:00:51.2]} 31... exf2 {[%clk 0:00:23.9]} 32.
b4 {[%clk 0:00:51.7]} 32... Ba7 {[%clk 0:00:19.1]} 33. c4 {[%clk 0:00:50.1]}
33... a5 {[%clk 0:00:14.6]} 34. a3 {[%clk 0:00:45.3]} 34... axb4 {[%clk
0:00:11.6]} 35. axb4 {[%clk 0:00:43.6]} 35... Ke6 {[%clk 0:00:10.5]} 36. c5
{[%clk 0:00:43.4]} 36... b6 {[%clk 0:00:10.1]} 37. Kxf2 {[%clk 0:00:37.4]} 37...
bxc5 {[%clk 0:00:10.1]} 38. bxc5 {[%clk 0:00:38.3]} 38... Bxc5+ {[%clk
0:00:10.7]} 39. Kg2 {[%clk 0:00:38.3]} 39... Ra7 {[%clk 0:00:09.3]} 40. Bb3+
{[%clk 0:00:37.2]} 40... Ke5 {[%clk 0:00:08.4]} 41. Rc1 {[%clk 0:00:35.5]} 41...
Ra5 {[%clk 0:00:07]} 42. Kh3 {[%clk 0:00:33.9]} 42... Kd6 {[%clk 0:00:05.8]} 43.
Kg4 {[%clk 0:00:33.8]} 43... Bd4 {[%clk 0:00:05.7]} 44. Rd1 {[%clk 0:00:33.6]}
44... Kc5 {[%clk 0:00:05]} 45. Kxg5 {[%clk 0:00:30.4]} 45... Kb4+ {[%clk
0:00:05.1]} 46. Kg4 {[%clk 0:00:30.8]} 46... c5 {[%clk 0:00:05.2]} 47. Be6
{[%clk 0:00:26.9]} 47... Kc3 {[%clk 0:00:05.3]} 48. h4 {[%clk 0:00:24.8]} 48...
Kc2 {[%clk 0:00:05.6]} 49. Re1 {[%clk 0:00:24.7]} 49... Ra4 {[%clk 0:00:05.4]}
50. Kg5 {[%clk 0:00:21.6]} 50... c4 {[%clk 0:00:05.4]} 51. h5 {[%clk 0:00:21.2]}
51... c3 {[%clk 0:00:05.7]} 52. h6 {[%clk 0:00:21]} 52... Kd2 {[%clk 0:00:06]}
53. Rf1 {[%clk 0:00:18]} 53... c2 {[%clk 0:00:06.1]} 54. Bb3 {[%clk 0:00:16.5]}
54... Ra5+ {[%clk 0:00:06]} 55. Kg6 {[%clk 0:00:16.5]} 55... c1=Q {[%clk
0:00:06.3]} 56. Rxc1 {[%clk 0:00:16.9]} 56... Kxc1 {[%clk 0:00:07.1]} 57. g4
{[%clk 0:00:17.6]} 57... Ra3 {[%clk 0:00:06.9]} 58. Be6 {[%clk 0:00:16.8]} 58...
Ra6 {[%clk 0:00:06.7]} 59. Kf7 {[%clk 0:00:16.7]} 59... Kd2 {[%clk 0:00:06.9]}
60. g5 {[%clk 0:00:16.9]} 60... Ke3 {[%clk 0:00:06.6]} 61. g6 {[%clk 0:00:17.1]}
61... Ra7+ {[%clk 0:00:05.4]} 62. Kf8 {[%clk 0:00:14.3]} 62... Ra8+ {[%clk
0:00:04.7]} 63. Kf7 {[%clk 0:00:14.7]} 63... Ra7+ {[%clk 0:00:03.9]} 64. Kf8
{[%clk 0:00:15]} 64... Bc5+ {[%clk 0:00:03.1]} 65. Kg8 {[%clk 0:00:15]} 65...
Ra8+ {[%clk 0:00:01.8]} 66. Kf7 {[%clk 0:00:15.3]} 66... Ra7+ {[%clk 0:00:02.7]}
67. Kg8 {[%clk 0:00:15.4]} 67... Ra8+ {[%clk 0:00:03.3]} 68. Kf7 {[%clk
0:00:15.7]} 68... Rf8+ {[%clk 0:00:03.9]} 69. Kg7 {[%clk 0:00:15.5]} 69... Re8
{[%clk 0:00:04.3]} 70. Kf7 {[%clk 0:00:15.6]} 70... Bd4 {[%clk 0:00:04.8]} 71.
Kxe8 {[%clk 0:00:14.9]} 71... Kf4 {[%clk 0:00:05.4]} 72. g7 {[%clk 0:00:15.3]}
72... Ke5 {[%clk 0:00:05.5]} 73. g8=Q {[%clk 0:00:15.7]} 73... Kd6 {[%clk
0:00:06.4]} 74. Qf7 {[%clk 0:00:16.3]} 1-0

[Event "*** Titled Tuesday Blitz"]
[Site "Chess.com"]
[Date "2020.05.05"]
[Round "5"]
[White "Man-Chuk"]
[Black "mbachez"]
[Result "1-0"]
[WhiteElo "2740"]
[BlackElo "2440"]
[TimeControl "180+1"]
[EndTime "10:59:11 PDT"]
[Termination "Man-Chuk won by resignation"]

1. c4 {[%clk 0:03:00.9]} 1... e5 {[%clk 0:02:55.6]} 2. Nc3 {[%clk 0:03:00.3]}
2... Nf6 {[%clk 0:02:55.1]} 3. Nf3 {[%clk 0:02:59]} 3... Nc6 {[%clk 0:02:53.5]}
4. e3 {[%clk 0:02:58.6]} 4... Bb4 {[%clk 0:02:52.9]} 5. Qc2 {[%clk 0:02:58.6]}
5... O-O {[%clk 0:02:52.7]} 6. Nd5 {[%clk 0:02:56.2]} 6... Re8 {[%clk
0:02:40.7]} 7. Qf5 {[%clk 0:02:55.8]} 7... Be7 {[%clk 0:02:25.5]} 8. Nxe5 {[%clk
0:02:22.4]} 8... d6 {[%clk 0:02:19.9]} 9. Nxc6 {[%clk 0:02:16.1]} 9... bxc6
{[%clk 0:02:17.7]} 10. Nxe7+ {[%clk 0:02:10.8]} 10... Qxe7 {[%clk 0:02:14.6]}
11. Qc2 {[%clk 0:02:10.5]} 11... Ne4 {[%clk 0:02:06.6]} 12. d3 {[%clk
0:02:09.1]} 12... Nc5 {[%clk 0:01:59.2]} 13. Be2 {[%clk 0:02:01.5]} 13... Qg5
{[%clk 0:01:47.2]} 14. g3 {[%clk 0:01:41]} 14... Qg6 {[%clk 0:01:45.2]} 15. h4
{[%clk 0:01:29.5]} 15... h5 {[%clk 0:01:42.6]} 16. b4 {[%clk 0:01:25]} 16... Nd7
{[%clk 0:01:21.6]} 17. Bb2 {[%clk 0:01:20]} 17... a5 {[%clk 0:01:20.9]} 18. a3
{[%clk 0:01:18.4]} 18... axb4 {[%clk 0:01:17.7]} 19. axb4 {[%clk 0:01:19.3]}
19... Rxa1+ {[%clk 0:01:17.7]} 20. Bxa1 {[%clk 0:01:20.2]} 20... c5 {[%clk
0:01:18.1]} 21. b5 {[%clk 0:01:14.4]} 21... Bb7 {[%clk 0:01:17.6]} 22. O-O
{[%clk 0:01:11.9]} 22... Qf5 {[%clk 0:01:15.3]} 23. e4 {[%clk 0:01:08.2]} 23...
Qg6 {[%clk 0:01:11.1]} 24. Qd1 {[%clk 0:01:05.5]} 24... Nf6 {[%clk 0:01:04.5]}
25. Bxf6 {[%clk 0:01:03.9]} 25... Qxf6 {[%clk 0:01:05.4]} 26. Bxh5 {[%clk
0:01:03.8]} 26... Ra8 {[%clk 0:01:05.5]} 27. Qf3 {[%clk 0:00:58.8]} 27... Qe6
{[%clk 0:01:01.9]} 28. Bg4 {[%clk 0:00:51.2]} 28... Qe5 {[%clk 0:01:00.4]} 29.
h5 {[%clk 0:00:51.1]} 29... Ra3 {[%clk 0:00:56.1]} 30. Bf5 {[%clk 0:00:49.4]}
30... Qd4 {[%clk 0:00:47.9]} 31. Rd1 {[%clk 0:00:49]} 31... Ra2 {[%clk
0:00:43.3]} 32. Qe3 {[%clk 0:00:37.6]} 32... Qf6 {[%clk 0:00:42.7]} 33. Rd2
{[%clk 0:00:31.1]} 33... Ra1+ {[%clk 0:00:41.3]} 34. Kh2 {[%clk 0:00:28.2]}
34... Qxf5 {[%clk 0:00:41]} 35. Qe2 {[%clk 0:00:20.5]} 35... Qe6 {[%clk
0:00:31.4]} 36. Rd1 {[%clk 0:00:17.1]} 36... Rxd1 {[%clk 0:00:28.9]} 37. Qxd1
{[%clk 0:00:18]} 37... Bc8 {[%clk 0:00:29.4]} 38. Kg1 {[%clk 0:00:11]} 38... Qh3
{[%clk 0:00:29.1]} 39. Qf1 {[%clk 0:00:07]} 39... Qxh5 {[%clk 0:00:27.3]} 40. f3
{[%clk 0:00:06.8]} 40... Qg5 {[%clk 0:00:27.2]} 41. Qf2 {[%clk 0:00:05.7]} 41...
Be6 {[%clk 0:00:27.2]} 42. Kg2 {[%clk 0:00:05.7]} 42... f5 {[%clk 0:00:26.7]}
43. f4 {[%clk 0:00:03.2]} 43... Qg6 {[%clk 0:00:25.5]} 44. Qe3 {[%clk
0:00:03.6]} 44... Bc8 {[%clk 0:00:24.9]} 45. e5 {[%clk 0:00:03.6]} 45... Bb7+
{[%clk 0:00:24.7]} 46. Kf2 {[%clk 0:00:04.2]} 46... Qh5 {[%clk 0:00:24.7]} 47.
exd6 {[%clk 0:00:03.9]} 47... cxd6 {[%clk 0:00:23.8]} 48. Qe6+ {[%clk
0:00:03.9]} 48... Kh8 {[%clk 0:00:20.5]} 49. Qxd6 {[%clk 0:00:04.4]} 49... Qf3+
{[%clk 0:00:20.4]} 50. Ke1 {[%clk 0:00:04.9]} 50... Qe3+ {[%clk 0:00:20.2]} 51.
Kd1 {[%clk 0:00:04.8]} 51... Bf3+ {[%clk 0:00:20.2]} 52. Kc2 {[%clk 0:00:05.2]}
52... Qe2+ {[%clk 0:00:20.6]} 53. Kc3 {[%clk 0:00:05]} 53... Qe1+ {[%clk
0:00:19.7]} 54. Kb2 {[%clk 0:00:03.6]} 54... Qb4+ {[%clk 0:00:17.9]} 55. Kc2
{[%clk 0:00:03.3]} 55... Qa4+ {[%clk 0:00:18.1]} 56. Kb2 {[%clk 0:00:03.1]}
56... Qb4+ {[%clk 0:00:17.6]} 57. Kc2 {[%clk 0:00:03.5]} 57... Bg4 {[%clk
0:00:15]} 58. Qd8+ {[%clk 0:00:03]} 58... Kh7 {[%clk 0:00:14.6]} 59. Qh4+ {[%clk
0:00:03.1]} 59... Kg6 {[%clk 0:00:15]} 60. Qg5+ {[%clk 0:00:03.6]} 60... Kf7
{[%clk 0:00:15.3]} 61. Qd8 {[%clk 0:00:04]} 61... Qa4+ {[%clk 0:00:14.8]} 62.
Kb2 {[%clk 0:00:04.1]} 62... Bd1 {[%clk 0:00:14.8]} 63. Qd5+ {[%clk 0:00:03]}
63... Kg6 {[%clk 0:00:14.6]} 64. Qe6+ {[%clk 0:00:03.4]} 64... Kh7 {[%clk
0:00:14.5]} 65. Qxf5+ {[%clk 0:00:04.3]} 65... Kh8 {[%clk 0:00:14.9]} 66. Qh3+
{[%clk 0:00:03.7]} 66... Kg8 {[%clk 0:00:14.8]} 67. Qc8+ {[%clk 0:00:04.2]}
67... Kf7 {[%clk 0:00:14.7]} 68. Qf5+ {[%clk 0:00:04.3]} 68... Ke7 {[%clk
0:00:14.9]} 69. Qxc5+ {[%clk 0:00:04.3]} 69... Ke8 {[%clk 0:00:15.3]} 70. Qe5+
{[%clk 0:00:04.4]} 70... Kf8 {[%clk 0:00:15.5]} 71. Qc3 {[%clk 0:00:05.1]} 71...
Bf3 {[%clk 0:00:14]} 72. Qa3+ {[%clk 0:00:05.1]} 72... Qxa3+ {[%clk 0:00:11.4]}
73. Kxa3 {[%clk 0:00:06]} 73... Be2 {[%clk 0:00:11.9]} 74. b6 {[%clk 0:00:06.4]}
74... Bf3 {[%clk 0:00:11.5]} 75. d4 {[%clk 0:00:06.7]} 75... Ke7 {[%clk
0:00:12.4]} 76. Kb4 {[%clk 0:00:06.7]} 76... Kd7 {[%clk 0:00:12.9]} 77. d5
{[%clk 0:00:06.3]} 77... Kc8 {[%clk 0:00:12.7]} 78. Kc5 {[%clk 0:00:06.6]} 78...
Be2 {[%clk 0:00:12.7]} 79. Kd4 {[%clk 0:00:06.4]} 79... Bf3 {[%clk 0:00:11.8]}
80. c5 {[%clk 0:00:07.3]} 80... Bg2 {[%clk 0:00:10.9]} 1-0

[Event "*** Titled Tuesday Blitz"]
[Site "Chess.com"]
[Date "2020.05.05"]
[Round "5"]
[White "SmirnovAlexandrA"]
[Black "ChesterF"]
[Result "1/2-1/2"]
[WhiteElo "2329"]
[BlackElo "2501"]
[TimeControl "180+1"]
[EndTime "10:59:24 PDT"]
[Termination "Game drawn by agreement"]

1. e4 {[%clk 0:03:00.9]} 1... c5 {[%clk 0:02:57.9]} 2. Nf3 {[%clk 0:03:00.9]}
2... d6 {[%clk 0:02:56.3]} 3. d4 {[%clk 0:03:00.9]} 3... cxd4 {[%clk 0:02:57.2]}
4. Nxd4 {[%clk 0:03:01.5]} 4... Nf6 {[%clk 0:02:54.3]} 5. Nc3 {[%clk 0:03:01.7]}
5... a6 {[%clk 0:02:53]} 6. Bg5 {[%clk 0:03:00.9]} 6... e6 {[%clk 0:02:49.6]} 7.
f4 {[%clk 0:03:00.1]} 7... Qc7 {[%clk 0:02:46.1]} 8. Qf3 {[%clk 0:02:59.4]} 8...
b5 {[%clk 0:02:43.3]} 9. O-O-O {[%clk 0:02:59.3]} 9... Bb7 {[%clk 0:02:40.5]}
10. Bd3 {[%clk 0:02:56.6]} 10... Nbd7 {[%clk 0:02:39.9]} 11. Rhe1 {[%clk
0:02:50.9]} 11... Be7 {[%clk 0:02:39.3]} 12. a3 {[%clk 0:02:50.4]} 12... Rc8
{[%clk 0:02:35]} 13. Qg3 {[%clk 0:02:44.4]} 13... Qb6 {[%clk 0:02:25.6]} 14. Nb3
{[%clk 0:02:39.3]} 14... b4 {[%clk 0:02:07.7]} 15. axb4 {[%clk 0:02:40.2]} 15...
Qxb4 {[%clk 0:02:07.5]} 16. e5 {[%clk 0:02:40.2]} 16... Nd5 {[%clk 0:01:46.5]}
17. Bxe7 {[%clk 0:02:32.1]} 17... Kxe7 {[%clk 0:01:40.7]} 18. exd6+ {[%clk
0:02:31]} 18... Kf8 {[%clk 0:01:40]} 19. Nxd5 {[%clk 0:02:23.3]} 19... Bxd5
{[%clk 0:01:32.3]} 20. Kb1 {[%clk 0:02:11]} 20... a5 {[%clk 0:01:20.5]} 21. f5
{[%clk 0:01:55.8]} 21... a4 {[%clk 0:01:12.2]} 22. fxe6 {[%clk 0:01:54.9]} 22...
Bxe6 {[%clk 0:01:07.7]} 23. Rxe6 {[%clk 0:01:40.4]} 23... fxe6 {[%clk
0:00:52.2]} 24. Rf1+ {[%clk 0:01:30.8]} 24... Kg8 {[%clk 0:00:44.1]} 25. Qe3
{[%clk 0:00:56.4]} 25... Re8 {[%clk 0:00:18.4]} 26. Nd2 {[%clk 0:00:48.7]} 26...
Qxd6 {[%clk 0:00:16.4]} 27. Bc4 {[%clk 0:00:43.7]} 27... Nf6 {[%clk 0:00:12.5]}
28. Ne4 {[%clk 0:00:41.7]} 28... Qe5 {[%clk 0:00:06.8]} 29. Nxf6+ {[%clk
0:00:39.8]} 29... gxf6 {[%clk 0:00:07.4]} 30. Qxe5 {[%clk 0:00:25.1]} 30... fxe5
{[%clk 0:00:06.8]} 31. Re1 {[%clk 0:00:26]} 31... Kg7 {[%clk 0:00:06.5]} 32.
Rxe5 {[%clk 0:00:25.7]} 32... Kf6 {[%clk 0:00:07.4]} 33. Re3 {[%clk 0:00:25.2]}
33... Rhg8 {[%clk 0:00:07.5]} 34. g3 {[%clk 0:00:24.5]} 34... e5 {[%clk
0:00:07.8]} 35. b4 {[%clk 0:00:23.1]} 35... Rg4 {[%clk 0:00:06.7]} 36. Rf3+
{[%clk 0:00:16.3]} 36... Kg5 {[%clk 0:00:03.6]} 37. h4+ {[%clk 0:00:11.8]} 37...
Kh6 {[%clk 0:00:03.9]} 38. Rf6+ {[%clk 0:00:11]} 38... Kg7 {[%clk 0:00:04.2]}
39. Rf7+ {[%clk 0:00:11]} 39... Kg6 {[%clk 0:00:04.7]} 40. h5+ {[%clk 0:00:08]}
40... Kg5 {[%clk 0:00:04.7]} 41. Rg7+ {[%clk 0:00:07.3]} 41... Kf5 {[%clk
0:00:03.2]} 42. Bd3+ {[%clk 0:00:06.2]} 42... e4 {[%clk 0:00:03.6]} 43. Rf7+
{[%clk 0:00:05.8]} 43... Ke6 {[%clk 0:00:03.7]} 44. Bc4+ {[%clk 0:00:05.8]}
44... Ke5 {[%clk 0:00:04.1]} 45. b5 {[%clk 0:00:04.6]} 45... e3 {[%clk
0:00:04.3]} 46. Kc1 {[%clk 0:00:04]} 46... Kd4 {[%clk 0:00:04.6]} 47. Be2 {[%clk
0:00:03.9]} 47... a3 {[%clk 0:00:04.4]} 48. Rd7+ {[%clk 0:00:03.7]} 48... Kc3
{[%clk 0:00:04.8]} 49. Bxg4 {[%clk 0:00:04]} 49... a2 {[%clk 0:00:04.5]} 50. Ra7
{[%clk 0:00:04.3]} 50... e2 {[%clk 0:00:04.9]} 51. Bxe2 {[%clk 0:00:03.8]} 51...
Rxe2 {[%clk 0:00:04.2]} 52. Ra3+ {[%clk 0:00:04.3]} 52... Kb4 {[%clk 0:00:03.7]}
53. Rxa2 {[%clk 0:00:04.6]} 53... Re1+ {[%clk 0:00:04.5]} 54. Kb2 {[%clk
0:00:05.2]} 54... Kxb5 {[%clk 0:00:04.3]} 55. Ra3 {[%clk 0:00:04.7]} 55... Rg1
{[%clk 0:00:04.3]} 56. Rc3 {[%clk 0:00:04.9]} 56... Kb4 {[%clk 0:00:04.3]} 57.
Rb3+ {[%clk 0:00:03.4]} 57... Kc4 {[%clk 0:00:04.4]} 58. Rd3 {[%clk 0:00:04.3]}
58... Rg2 {[%clk 0:00:03.6]} 59. h6 {[%clk 0:00:05.2]} 59... Rh2 {[%clk
0:00:03.3]} 60. Rd6 {[%clk 0:00:04.8]} 60... Rh3 {[%clk 0:00:03.4]} 61. Rd7
{[%clk 0:00:04.1]} 61... Rxg3 {[%clk 0:00:03.2]} 62. Rxh7 {[%clk 0:00:02.7]}
62... Rh3 {[%clk 0:00:03.6]} 63. Rc7+ {[%clk 0:00:02.5]} 63... Kd5 {[%clk
0:00:03.9]} 64. h7 {[%clk 0:00:03.4]} 64... Kd6 {[%clk 0:00:04.3]} 65. Ra7
{[%clk 0:00:03.2]} 65... Kc6 {[%clk 0:00:03.7]} 66. c3 {[%clk 0:00:03.1]} 66...
Kb6 {[%clk 0:00:02.9]} 67. Rg7 {[%clk 0:00:03.2]} 67... Rh2+ {[%clk 0:00:03.8]}
68. Kb3 {[%clk 0:00:03.1]} 68... Kb5 {[%clk 0:00:04.2]} 69. c4+ {[%clk
0:00:02.6]} 69... Kc5 {[%clk 0:00:04.8]} 70. Rg5+ {[%clk 0:00:02.1]} 70... Kd6
{[%clk 0:00:04.3]} 71. Rg6+ {[%clk 0:00:02.3]} 71... Ke7 {[%clk 0:00:04.3]} 72.
Rg7+ {[%clk 0:00:02.5]} 72... Kf6 {[%clk 0:00:04]} 73. Ra7 {[%clk 0:00:03.4]}
73... Ke6 {[%clk 0:00:03.9]} 74. Kb4 {[%clk 0:00:03.5]} 74... Rb2+ {[%clk
0:00:03]} 75. Kc5 {[%clk 0:00:03.3]} 75... Rh2 {[%clk 0:00:03.3]} 76. Ra8 {[%clk
0:00:03]} 76... Kd7 {[%clk 0:00:03.2]} 77. Ra6 {[%clk 0:00:03.9]} 77... Rh5+
{[%clk 0:00:02]} 78. Kb4 {[%clk 0:00:03.1]} 78... Kc7 {[%clk 0:00:01.6]} 79.
Ra7+ {[%clk 0:00:04]} 79... Kb6 {[%clk 0:00:01.9]} 80. Rg7 {[%clk 0:00:03.5]}
80... Rh4 {[%clk 0:00:02.1]} 81. Rg6+ {[%clk 0:00:02.2]} 81... Kb7 {[%clk
0:00:01.7]} 82. Rg7+ {[%clk 0:00:02.4]} 82... Kc6 {[%clk 0:00:02.5]} 83. h8=Q
{[%clk 0:00:02.9]} 83... Rxh8 {[%clk 0:00:01.5]} 84. Rg6+ {[%clk 0:00:02.7]}
84... Kc7 {[%clk 0:00:02.2]} 85. Rg5 {[%clk 0:00:02.7]} 85... Kc6 {[%clk
0:00:02.6]} 86. Rg6+ {[%clk 0:00:02.3]} 1/2-1/2

[Event "*** Titled Tuesday Blitz"]
[Site "Chess.com"]
[Date "2020.05.05"]
[Round "5"]
[White "vinniethepooh"]
[Black "Philosopherrr"]
[Result "1/2-1/2"]
[WhiteElo "2680"]
[BlackElo "2491"]
[TimeControl "180+1"]
[EndTime "10:59:28 PDT"]
[Termination "Game drawn by repetition"]

1. d4 {[%clk 0:03:00.9]} 1... Nf6 {[%clk 0:02:59.2]} 2. c4 {[%clk 0:03:01.2]}
2... e6 {[%clk 0:02:59.2]} 3. Nc3 {[%clk 0:03:00.7]} 3... c5 {[%clk 0:02:59.4]}
4. d5 {[%clk 0:03:00.8]} 4... exd5 {[%clk 0:02:59.2]} 5. cxd5 {[%clk 0:03:01.7]}
5... d6 {[%clk 0:03:00.1]} 6. e4 {[%clk 0:03:01.4]} 6... g6 {[%clk 0:02:59.9]}
7. Be2 {[%clk 0:03:01.6]} 7... Bg7 {[%clk 0:02:54.8]} 8. Be3 {[%clk 0:03:01.8]}
8... O-O {[%clk 0:02:53.5]} 9. Nf3 {[%clk 0:03:02]} 9... Bg4 {[%clk 0:02:50.8]}
10. Nd2 {[%clk 0:03:01.6]} 10... Bxe2 {[%clk 0:02:51]} 11. Qxe2 {[%clk
0:03:02.5]} 11... Nbd7 {[%clk 0:02:51.3]} 12. O-O {[%clk 0:03:01.9]} 12... a6
{[%clk 0:02:48.2]} 13. a4 {[%clk 0:03:01.8]} 13... Re8 {[%clk 0:02:49.1]} 14. h3
{[%clk 0:02:59.7]} 14... Nh5 {[%clk 0:02:39.8]} 15. f4 {[%clk 0:02:43.2]} 15...
Ng3 {[%clk 0:02:38.8]} 16. Qf3 {[%clk 0:02:43.1]} 16... Nxf1 {[%clk 0:02:38.9]}
17. Rxf1 {[%clk 0:02:43.9]} 17... f5 {[%clk 0:02:35.9]} 18. Kh2 {[%clk
0:02:32.3]} 18... Qe7 {[%clk 0:02:22.7]} 19. Re1 {[%clk 0:01:53.8]} 19... Bxc3
{[%clk 0:02:20.7]} 20. bxc3 {[%clk 0:01:54.7]} 20... fxe4 {[%clk 0:02:21]} 21.
Qg3 {[%clk 0:01:54.5]} 21... Qf7 {[%clk 0:02:20.1]} 22. c4 {[%clk 0:01:47.4]}
22... Nf6 {[%clk 0:02:20.1]} 23. Qh4 {[%clk 0:01:42.9]} 23... b5 {[%clk
0:02:19.1]} 24. f5 {[%clk 0:01:32.4]} 24... bxc4 {[%clk 0:02:12.2]} 25. Nxc4
{[%clk 0:01:26.3]} 25... Nxd5 {[%clk 0:02:03.6]} 26. Nxd6 {[%clk 0:00:42.8]}
26... Qc7 {[%clk 0:02:03.1]} 27. Bf4 {[%clk 0:00:37.4]} 27... Nxf4 {[%clk
0:02:03]} 28. Qxf4 {[%clk 0:00:38.3]} 28... Rad8 {[%clk 0:02:03.4]} 29. Rd1
{[%clk 0:00:37.6]} 29... e3 {[%clk 0:02:03.4]} 30. fxg6 {[%clk 0:00:29.7]} 30...
hxg6 {[%clk 0:02:00.8]} 31. Qf6 {[%clk 0:00:27.6]} 31... Qg7 {[%clk 0:01:22.6]}
32. Qxg7+ {[%clk 0:00:21.3]} 32... Kxg7 {[%clk 0:01:22.5]} 33. Nxe8+ {[%clk
0:00:21.5]} 33... Rxe8 {[%clk 0:01:23.1]} 34. Kg3 {[%clk 0:00:22.4]} 34... Re4
{[%clk 0:01:18.6]} 35. Kf3 {[%clk 0:00:20.5]} 35... Rxa4 {[%clk 0:01:18.4]} 36.
Kxe3 {[%clk 0:00:21]} 36... Ra3+ {[%clk 0:01:17.1]} 37. Kf4 {[%clk 0:00:18.8]}
37... Kh6 {[%clk 0:01:14.2]} 38. Rd6 {[%clk 0:00:17]} 38... a5 {[%clk
0:01:10.9]} 39. Rc6 {[%clk 0:00:15.3]} 39... Ra4+ {[%clk 0:01:11.1]} 40. Kf3
{[%clk 0:00:14]} 40... Rc4 {[%clk 0:01:10.6]} 41. Ra6 {[%clk 0:00:09.9]} 41...
a4 {[%clk 0:01:10.9]} 42. Ra5 {[%clk 0:00:10]} 42... Rc3+ {[%clk 0:01:09.7]} 43.
Kf4 {[%clk 0:00:08.5]} 43... a3 {[%clk 0:01:05.9]} 44. h4 {[%clk 0:00:07]} 44...
Kh5 {[%clk 0:01:01.1]} 45. Ra8 {[%clk 0:00:05.8]} 45... Rc4+ {[%clk 0:00:59.4]}
46. Kg3 {[%clk 0:00:04.9]} 46... Rg4+ {[%clk 0:00:58.8]} 47. Kf3 {[%clk
0:00:05.2]} 47... Rxh4 {[%clk 0:00:57.1]} 48. Rxa3 {[%clk 0:00:05]} 48... Rc4
{[%clk 0:00:57.2]} 49. Ra5 {[%clk 0:00:05.1]} 49... Kh4 {[%clk 0:00:56.6]} 50.
Ra8 {[%clk 0:00:04.7]} 50... Rc3+ {[%clk 0:00:56.7]} 51. Kf2 {[%clk 0:00:04.6]}
51... g5 {[%clk 0:00:56.6]} 52. Rh8+ {[%clk 0:00:03.8]} 52... Kg4 {[%clk
0:00:56.9]} 53. Rc8 {[%clk 0:00:04.7]} 53... Rc2+ {[%clk 0:00:57.2]} 54. Ke3
{[%clk 0:00:04.3]} 54... Kg3 {[%clk 0:00:57.7]} 55. Kd3 {[%clk 0:00:02.7]} 55...
Rc1 {[%clk 0:00:54.5]} 56. Kd2 {[%clk 0:00:03]} 56... Rc4 {[%clk 0:00:54.5]} 57.
Kd3 {[%clk 0:00:02.9]} 57... Rd4+ {[%clk 0:00:54.7]} 58. Ke3 {[%clk 0:00:03.4]}
58... Rd5 {[%clk 0:00:54.9]} 59. Ke4 {[%clk 0:00:03.9]} 59... Rd4+ {[%clk
0:00:36.5]} 60. Ke3 {[%clk 0:00:04.5]} 60... Rc4 {[%clk 0:00:35]} 61. Kd3 {[%clk
0:00:05]} 61... Rg4 {[%clk 0:00:33.7]} 62. Rxc5 {[%clk 0:00:04]} 62... Kxg2
{[%clk 0:00:34]} 63. Ke3 {[%clk 0:00:04.6]} 63... Rg3+ {[%clk 0:00:33.8]} 64.
Ke2 {[%clk 0:00:04.3]} 64... g4 {[%clk 0:00:33.8]} 65. Rg5 {[%clk 0:00:04.1]}
65... Kh3 {[%clk 0:00:29.9]} 66. Rh5+ {[%clk 0:00:03.6]} 66... Kg2 {[%clk
0:00:30]} 67. Rg5 {[%clk 0:00:04.5]} 67... Kg1 {[%clk 0:00:28.5]} 68. Rg6 {[%clk
0:00:02.7]} 68... Rg2+ {[%clk 0:00:27.7]} 69. Ke3 {[%clk 0:00:03.1]} 69... Kh2
{[%clk 0:00:27.5]} 70. Kf4 {[%clk 0:00:02.8]} 70... g3 {[%clk 0:00:24.2]} 71.
Rh6+ {[%clk 0:00:03.2]} 71... Kg1 {[%clk 0:00:24.3]} 72. Kf3 {[%clk 0:00:04.1]}
72... Rh2 {[%clk 0:00:20.3]} 73. Ra6 {[%clk 0:00:04]} 73... Rf2+ {[%clk
0:00:10.1]} 74. Kxg3 {[%clk 0:00:04.1]} 74... Rf1 {[%clk 0:00:10.3]} 75. Ra2
{[%clk 0:00:04.4]} 75... Re1 {[%clk 0:00:10.3]} 76. Rg2+ {[%clk 0:00:04.4]}
76... Kf1 {[%clk 0:00:10.8]} 77. Rf2+ {[%clk 0:00:04.8]} 77... Kg1 {[%clk
0:00:11.3]} 78. Rg2+ {[%clk 0:00:05.3]} 78... Kf1 {[%clk 0:00:11.7]} 79. Rf2+
{[%clk 0:00:04.9]} 79... Kg1 {[%clk 0:00:12.3]} 80. Rg2+ {[%clk 0:00:05.4]}
1/2-1/2